Workbook

Sheet Januar-Februar-Marts
A1: Timer til afspadsering: | E1: =SUM(G:G)+E2 -> 0
A2: Overført fra forrige år | E2: 0
A3: Dato | B3: Møde-gå | D3: Pause | E3: Timer | H3: =IF(G13="","Ugen er IKKE skrevet ","Ugen er skrevet") -> Ugen er IKKE skrevet
F4: =COUNT(D5:D11) -> 2
A5: 2012-01-02 | E5: =SUM((C5-B5)-D5) -> 00:00:00
A6: 2012-01-03 | E6: 00:00:00
A7: 2012-01-04 | E7: 00:00:00
A8: 2012-01-05 | E8: =SUM((C8-B8)-D8) -> 00:00:00
A9: 2012-01-06 | E9: 00:00:00
A10: 2012-01-07 | B10: 00:00:00 | C10: 00:00:00 | D10: 00:00:00 | E10: 00:00:00
A11: 2012-01-08 | B11: 00:00:00 | C11: 00:00:00 | D11: 00:00:00 | E11: 00:00:00
A12: Timer på ugen: | E12: =SUM(E5:E11)*24 -> 0
A13: Timer til afspadsering: | G13: =IF(F4=7,E12-37,"") -> 
A14: Dato | B14: Møde-gå | D14: Pause | E14: Timer | H14: =IF(G24="","Ugen er IKKE skrevet ","Ugen er skrevet") -> Ugen er IKKE skrevet
F15: =COUNT(D16:D22) -> 2
A16: 2012-01-09 | E16: =SUM((C16-B16)-D16) -> 00:00:00
A17: 2012-01-10 | E17: 00:00:00
A18: 2012-01-11 | E18: 00:00:00
A19: 2012-01-12 | E19: 00:00:00
A20: 2012-01-13 | E20: 00:00:00
A21: 2012-01-14 | B21: 00:00:00 | C21: 00:00:00 | D21: 00:00:00 | E21: 00:00:00
A22: 2012-01-15 | B22: 00:00:00 | C22: 00:00:00 | D22: 00:00:00 | E22: 00:00:00
A23: Timer på ugen: | E23: =SUM(E16:E22)*24 -> 0
A24: Timer til afspadsering: | G24: =IF(F15=7,E23-37,"") -> 
A25: Dato | B25: Møde-gå | D25: Pause | E25: Timer | H25: =IF(G35="","Ugen er IKKE skrevet ","Ugen er skrevet") -> Ugen er IKKE skrevet
F26: =COUNT(D27:D33) -> 2
A27: 2012-01-16 | E27: =SUM((C27-B27)-D27) -> 00:00:00
A28: 2012-01-17 | E28: 00:00:00
A29: 2012-01-18 | E29: 00:00:00
A30: 2012-01-19 | E30: 00:00:00
A31: 2012-01-20 | E31: 00:00:00
A32: 2012-01-21 | B32: 00:00:00 | C32: 00:00:00 | D32: 00:00:00 | E32: 00:00:00
A33: 2012-01-22 | B33: 00:00:00 | C33: 00:00:00 | D33: 00:00:00 | E33: 00:00:00
A34: Timer på ugen: | E34: =SUM(E27:E33)*24 -> 0
A35: Timer til afspadsering: | G35: =IF(F26=7,E34-37,"") -> 
A36: Dato | B36: Møde-gå | D36: Pause | E36: Timer | H36: =IF(G46="","Ugen er IKKE skrevet ","Ugen er skrevet") -> Ugen er IKKE skrevet
F37: =COUNT(D38:D44) -> 2
A38: 2012-01-23 | E38: =SUM((C38-B38)-D38) -> 00:00:00
A39: 2012-01-24 | E39: 00:00:00
A40: 2012-01-25 | E40: 00:00:00
A41: 2012-01-26 | E41: 00:00:00
A42: 2012-01-27 | E42: 00:00:00
A43: 2012-01-28 | B43: 00:00:00 | C43: 00:00:00 | D43: 00:00:00 | E43: 00:00:00
A44: 2012-01-29 | B44: 00:00:00 | C44: 00:00:00 | D44: 00:00:00 | E44: 00:00:00
A45: Timer på ugen: | E45: =SUM(E38:E44)*24 -> 0
A46: Timer til afspadsering: | G46: =IF(F37=7,E45-37,"") -> 
A47: Dato | B47: Møde-gå | D47: Pause | E47: Timer | H47: =IF(G57="","Ugen er IKKE skrevet ","Ugen er skrevet") -> Ugen er IKKE skrevet
F48: =COUNT(D49:D55) -> 2
A49: 2012-01-30 | E49: =SUM((C49-B49)-D49) -> 00:00:00
A50: 2012-01-31 | E50: 00:00:00
A51: 2012-02-01 | E51: 00:00:00
A52: 2012-02-02 | E52: 00:00:00
A53: 2012-02-03 | E53: 00:00:00
A54: 2012-02-04 | B54: 00:00:00 | C54: 00:00:00 | D54: 00:00:00 | E54: 00:00:00
A55: 2012-02-05 | B55: 00:00:00 | C55: 00:00:00 | D55: 00:00:00 | E55: 00:00:00
A56: Timer på ugen: | E56: =SUM(E49:E55)*24 -> 0
A57: Timer til afspadsering: | G57: =IF(F48=7,E56-37,"") -> 
A58: Dato | B58: Møde-gå | D58: Pause | E58: Timer | H58: =IF(G68="","Ugen er IKKE skrevet ","Ugen er skrevet") -> Ugen er IKKE skrevet
F59: =COUNT(D60:D66) -> 2
A60: 2012-02-06 | E60: =SUM((C60-B60)-D60) -> 00:00:00
A61: 2012-02-07 | E61: 00:00:00
A62: 2012-02-08 | E62: 00:00:00
A63: 2012-02-09 | E63: 00:00:00
A64: 2012-02-10 | E64: 00:00:00
A65: 2012-02-11 | B65: 00:00:00 | C65: 00:00:00 | D65: 00:00:00 | E65: 00:00:00
A66: 2012-02-12 | B66: 00:00:00 | C66: 00:00:00 | D66: 00:00:00 | E66: 00:00:00
A67: Timer på ugen: | E67: =SUM(E60:E66)*24 -> 0
A68: Timer til afspadsering: | G68: =IF(F59=7,E67-37,"") -> 
A69: Dato | B69: Møde-gå | D69: Pause | E69: Timer | H69: =IF(G79="","Ugen er IKKE skrevet ","Ugen er skrevet") -> Ugen er IKKE skrevet
F70: =COUNT(D71:D77) -> 2
A71: 2012-02-13 | E71: =SUM((C71-B71)-D71) -> 00:00:00
A72: 2012-02-14 | E72: 00:00:00
A73: 2012-02-15 | E73: 00:00:00
A74: 2012-02-16 | E74: 00:00:00
A75: 2012-02-17 | E75: 00:00:00
A76: 2012-02-18 | B76: 00:00:00 | C76: 00:00:00 | D76: 00:00:00 | E76: 00:00:00
A77: 2012-02-19 | B77: 00:00:00 | C77: 00:00:00 | D77: 00:00:00 | E77: 00:00:00
A78: Timer på ugen: | E78: =SUM(E71:E77)*24 -> 0
A79: Timer til afspadsering: | G79: =IF(F70=7,E78-37,"") -> 
A80: Dato | B80: Møde-gå | D80: Pause | E80: Timer | H80: =IF(G90="","Ugen er IKKE skrevet ","Ugen er skrevet") -> Ugen er IKKE skrevet
F81: =COUNT(D82:D88) -> 2
A82: 2012-02-20 | E82: =SUM((C82-B82)-D82) -> 00:00:00
A83: 2012-02-21 | E83: 00:00:00
A84: 2012-02-22 | E84: 00:00:00
A85: 2012-02-23 | E85: 00:00:00
A86: 2012-02-24 | E86: 00:00:00
A87: 2012-02-25 | B87: 00:00:00 | C87: 00:00:00 | D87: 00:00:00 | E87: 00:00:00
A88: 2012-02-26 | B88: 00:00:00 | C88: 00:00:00 | D88: 00:00:00 | E88: 00:00:00
A89: Timer på ugen: | E89: =SUM(E82:E88)*24 -> 0
A90: Timer til afspadsering: | G90: =IF(F81=7,E89-37,"") -> 
A91: Dato | B91: Møde-gå | D91: Pause | E91: Timer | H91: =IF(G101="","Ugen er IKKE skrevet ","Ugen er skrevet") -> Ugen er IKKE skrevet
F92: =COUNT(D93:D99) -> 2
A93: 2012-02-27 | E93: =SUM((C93-B93)-D93) -> 00:00:00
A94: 2012-02-28 | E94: 00:00:00
A95: 2012-02-29 | E95: 00:00:00
A96: 2012-03-01 | E96: 00:00:00
A97: 2012-03-02 | E97: 00:00:00
A98: 2012-03-03 | B98: 00:00:00 | C98: 00:00:00 | D98: 00:00:00 | E98: 00:00:00
A99: 2012-03-04 | B99: 00:00:00 | C99: 00:00:00 | D99: 00:00:00 | E99: 00:00:00
A100: Timer på ugen: | E100: =SUM(E93:E99)*24 -> 0
A101: Timer til afspadsering: | G101: =IF(F92=7,E100-37,"") -> 
A102: Dato | B102: Møde-gå | D102: Pause | E102: Timer | H102: =IF(G112="","Ugen er IKKE skrevet ","Ugen er skrevet") -> Ugen er IKKE skrevet
F103: =COUNT(D104:D110) -> 2
A104: 2012-03-05 | E104: =SUM((C104-B104)-D104) -> 00:00:00
A105: 2012-03-06 | E105: 00:00:00
A106: 2012-03-07 | E106: 00:00:00
A107: 2012-03-08 | E107: 00:00:00
A108: 2012-03-09 | E108: 00:00:00
A109: 2012-03-10 | B109: 00:00:00 | C109: 00:00:00 | D109: 00:00:00 | E109: 00:00:00
A110: 2012-03-11 | B110: 00:00:00 | C110: 00:00:00 | D110: 00:00:00 | E110: 00:00:00
A111: Timer på ugen: | E111: =SUM(E104:E110)*24 -> 0
A112: Timer til afspadsering: | G112: =IF(F103=7,E111-37,"") -> 
A113: Dato | B113: Møde-gå | D113: Pause | E113: Timer | H113: =IF(G123="","Ugen er IKKE skrevet ","Ugen er skrevet") -> Ugen er IKKE skrevet
F114: =COUNT(D115:D121) -> 2
A115: 2012-03-12 | E115: =SUM((C115-B115)-D115) -> 00:00:00
A116: 2012-03-13 | E116: 00:00:00
A117: 2012-03-14 | E117: 00:00:00
A118: 2012-03-15 | E118: 00:00:00
A119: 2012-03-16 | E119: 00:00:00
A120: 2012-03-17 | B120: 00:00:00 | C120: 00:00:00 | D120: 00:00:00 | E120: 00:00:00
A121: 2012-03-18 | B121: 00:00:00 | C121: 00:00:00 | D121: 00:00:00 | E121: 00:00:00
A122: Timer på ugen: | E122: =SUM(E115:E121)*24 -> 0
A123: Timer til afspadsering: | G123: =IF(F114=7,E122-37,"") -> 
A124: Dato | B124: Møde-gå | D124: Pause | E124: Timer | H124: =IF(G134="","Ugen er IKKE skrevet ","Ugen er skrevet") -> Ugen er IKKE skrevet
F125: =COUNT(D126:D132) -> 2
A126: 2012-03-19 | E126: =SUM((C126-B126)-D126) -> 00:00:00
A127: 2012-03-20 | E127: 00:00:00
A128: 2012-03-21 | E128: 00:00:00
A129: 2012-03-22 | E129: 00:00:00
A130: 2012-03-23 | E130: 00:00:00
A131: 2012-03-24 | B131: 00:00:00 | C131: 00:00:00 | D131: 00:00:00 | E131: 00:00:00
A132: 2012-03-25 | B132: 00:00:00 | C132: 00:00:00 | D132: 00:00:00 | E132: 00:00:00
A133: Timer på ugen: | E133: =SUM(E126:E132)*24 -> 0
A134: Timer til afspadsering: | G134: =IF(F125=7,E133-37,"") -> 
A135: Dato | B135: Møde-gå | D135: Pause | E135: Timer | H135: =IF(G145="","Ugen er IKKE skrevet ","Ugen er skrevet") -> Ugen er IKKE skrevet
F136: =COUNT(D137:D143) -> 2
A137: 2012-03-26 | E137: =SUM((C137-B137)-D137) -> 00:00:00
A138: 2012-03-27 | E138: 00:00:00
A139: 2012-03-28 | E139: 00:00:00
A140: 2012-03-29 | E140: 00:00:00
A141: 2012-03-30 | E141: 00:00:00
A142: 2012-03-31 | B142: 00:00:00 | C142: 00:00:00 | D142: 00:00:00 | E142: 00:00:00
A143: 2012-04-01 | B143: 00:00:00 | C143: 00:00:00 | D143: 00:00:00 | E143: 00:00:00
A144: Timer på ugen: | E144: =SUM(E137:E143)*24 -> 0
A145: Timer til afspadsering: | G145: =IF(F136=7,E144-37,"") -> 

Sheet April-Maj-Juni
A1: Timer til afspadsering: | E1: =SUM(G:G)+E2 -> 16.75
A2: Overført fra forrige måned | E2: =('Januar-Februar-Marts'!E1) -> 0
A3: Dato | B3: Møde-gå | D3: Pause | E3: Timer | H3: =IF(G13="","Ugen er IKKE skrevet ","Ugen er skrevet") -> Ugen er IKKE skrevet
F4: =COUNT(D5:D11) -> 2
A5: 2012-04-02 | E5: =SUM((C5-B5)-D5) -> 00:00:00
A6: 2012-04-03 | E6: 00:00:00
A7: 2012-04-04 | E7: 00:00:00
A8: 2012-04-05 | E8: 00:00:00
A9: 2012-04-06 | E9: 00:00:00
A10: 2012-04-07 | B10: 00:00:00 | C10: 00:00:00 | D10: 00:00:00 | E10: 00:00:00
A11: 2012-04-08 | B11: 00:00:00 | C11: 00:00:00 | D11: 00:00:00 | E11: 00:00:00
A12: Timer på ugen: | E12: =SUM(E5:E11)*24 -> 0
A13: Timer til afspadsering: | G13: =IF(F4=7,E12-37,"") -> 
A14: Dato | B14: Møde-gå | D14: Pause | E14: Timer | H14: =IF(G24="","Ugen er IKKE skrevet ","Ugen er skrevet") -> Ugen er IKKE skrevet
F15: =COUNT(D16:D22) -> 2
A16: 2012-04-09 | E16: =SUM((C16-B16)-D16) -> 00:00:00
A17: 2012-04-10 | E17: 00:00:00
A18: 2012-04-11 | E18: 00:00:00
A19: 2012-04-12 | E19: 00:00:00
A20: 2012-04-13 | E20: 00:00:00
A21: 2012-04-14 | B21: 00:00:00 | C21: 00:00:00 | D21: 00:00:00 | E21: 00:00:00
A22: 2012-04-15 | B22: 00:00:00 | C22: 00:00:00 | D22: 00:00:00 | E22: 00:00:00
A23: Timer på ugen: | E23: =SUM(E16:E22)*24 -> 0
A24: Timer til afspadsering: | G24: =IF(F15=7,E23-37,"") -> 
A25: Dato | B25: Møde-gå | D25: Pause | E25: Timer | H25: Ugen er IKKE skrevet
F26: =COUNT(D27:D33) -> 2
A27: 2012-04-16 | E27: =SUM((C27-B27)-D27) -> 00:00:00
A28: 2012-04-17 | E28: 00:00:00
A29: 2012-04-18 | E29: 00:00:00
A30: 2012-04-19 | E30: 00:00:00
A31: 2012-04-20 | E31: 00:00:00
A32: 2012-04-21 | B32: 00:00:00 | C32: 00:00:00 | D32: 00:00:00 | E32: 00:00:00
A33: 2012-04-22 | B33: 00:00:00 | C33: 00:00:00 | D33: 00:00:00 | E33: 00:00:00
A34: Timer på ugen: | E34: =SUM(E27:E33)*24 -> 0
A35: Timer til afspadsering: | G35: =IF(F26=7,E34-37,"") -> 
A36: Dato | B36: Møde-gå | D36: Pause | E36: Timer | H36: Ugen er IKKE skrevet
F37: =COUNT(D38:D44) -> 2
A38: 2012-04-23 | E38: =SUM((C38-B38)-D38) -> 00:00:00
A39: 2012-04-24 | E39: 00:00:00
A40: 2012-04-25 | E40: 00:00:00
A41: 2012-04-26 | E41: 00:00:00
A42: 2012-04-27 | E42: 00:00:00
A43: 2012-04-28 | B43: 00:00:00 | C43: 00:00:00 | D43: 00:00:00 | E43: 00:00:00
A44: 2012-04-29 | B44: 00:00:00 | C44: 00:00:00 | D44: 00:00:00 | E44: 00:00:00
A45: Timer på ugen: | E45: =SUM(E38:E44)*24 -> 0
A46: Timer til afspadsering: | G46: =IF(F37=7,E45-37,"") -> 
A47: Dato | B47: Møde-gå | D47: Pause | E47: Timer | H47: Ugen er IKKE skrevet
F48: =COUNT(D49:D55) -> 2
A49: 2012-04-30 | E49: =SUM((C49-B49)-D49) -> 00:00:00
A50: 2012-05-01 | E50: 00:00:00
A51: 2012-05-02 | E51: 00:00:00
A52: 2012-05-03 | E52: 00:00:00
A53: 2012-05-04 | E53: 00:00:00
A54: 2012-05-05 | B54: 00:00:00 | C54: 00:00:00 | D54: 00:00:00 | E54: 00:00:00
A55: 2012-05-06 | B55: 00:00:00 | C55: 00:00:00 | D55: 00:00:00 | E55: 00:00:00
A56: Timer på ugen: | E56: =SUM(E49:E55)*24 -> 0
A57: Timer til afspadsering: | G57: =IF(F48=7,E56-37,"") -> 
A58: Dato | B58: Møde-gå | D58: Pause | E58: Timer | H58: Ugen er IKKE skrevet
F59: =COUNT(D60:D66) -> 2
A60: 2012-05-07 | E60: =SUM((C60-B60)-D60) -> 00:00:00
A61: 2012-05-08 | E61: 00:00:00
A62: 2012-05-09 | E62: 00:00:00
A63: 2012-05-10 | E63: 00:00:00
A64: 2012-05-11 | E64: 00:00:00
A65: 2012-05-12 | B65: 00:00:00 | C65: 00:00:00 | D65: 00:00:00 | E65: 00:00:00
A66: 2012-05-13 | B66: 00:00:00 | C66: 00:00:00 | D66: 00:00:00 | E66: 00:00:00
A67: Timer på ugen: | E67: =SUM(E60:E66)*24 -> 0
A68: Timer til afspadsering: | G68: =IF(F59=7,E67-37,"") -> 
A69: Dato | B69: Møde-gå | D69: Pause | E69: Timer | H69: Ugen er IKKE skrevet
F70: =COUNT(D71:D77) -> 2
A71: 2012-05-14 | E71: =SUM((C71-B71)-D71) -> 00:00:00
A72: 2012-05-15 | E72: 00:00:00
A73: 2012-05-16 | E73: 00:00:00
A74: 2012-05-17 | E74: 00:00:00
A75: 2012-05-18 | E75: 00:00:00
A76: 2012-05-19 | B76: 00:00:00 | C76: 00:00:00 | D76: 00:00:00 | E76: 00:00:00
A77: 2012-05-20 | B77: 00:00:00 | C77: 00:00:00 | D77: 00:00:00 | E77: 00:00:00
A78: Timer på ugen: | E78: =SUM(E71:E77)*24 -> 0
A79: Timer til afspadsering: | G79: =IF(F70=7,E78-37,"") -> 
A80: Dato | B80: Møde-gå | D80: Pause | E80: Timer | H80: =IF(G90="","Ugen er IKKE skrevet ","Ugen er skrevet") -> Ugen er IKKE skrevet
F81: =COUNT(D82:D88) -> 2
A82: 2012-05-21 | E82: =SUM((C82-B82)-D82) -> 00:00:00
A83: 2012-05-22 | E83: 00:00:00
A84: 2012-05-23 | E84: 00:00:00
A85: 2012-05-24 | E85: 00:00:00
A86: 2012-05-25 | E86: 00:00:00
A87: 2012-05-26 | B87: 00:00:00 | C87: 00:00:00 | D87: 00:00:00 | E87: 00:00:00
A88: 2012-05-27 | B88: 00:00:00 | C88: 00:00:00 | D88: 00:00:00 | E88: 00:00:00
A89: Timer på ugen: | E89: =SUM(E82:E88)*24 -> 0
A90: Timer til afspadsering: | G90: =IF(F81=7,E89-37,"") -> 
A91: Dato | B91: Møde-gå | D91: Pause | E91: Timer | H91: Ugen er IKKE skrevet
F92: =COUNT(D93:D99) -> 2
A93: 2012-05-28 | E93: =SUM((C93-B93)-D93) -> 00:00:00
A94: 2012-05-29 | E94: 00:00:00
A95: 2012-05-30 | E95: 00:00:00
A96: 2012-05-31 | E96: 00:00:00
A97: 2012-06-01 | E97: 00:00:00
A98: 2012-06-02 | B98: 00:00:00 | C98: 00:00:00 | D98: 00:00:00 | E98: 00:00:00
A99: 2012-06-03 | B99: 00:00:00 | C99: 00:00:00 | D99: 00:00:00 | E99: 00:00:00
A100: Timer på ugen: | E100: =SUM(E93:E99)*24 -> 0
A101: Timer til afspadsering: | G101: =IF(F92=7,E100-37,"") -> 
A102: Dato | B102: Møde-gå | D102: Pause | E102: Timer | H102: Ugen er IKKE skrevet
F103: =COUNT(D104:D110) -> 2
A104: 2012-06-04 | E104: =SUM((C104-B104)-D104) -> 00:00:00
A105: 2012-06-05 | E105: 00:00:00
A106: 2012-06-06 | E106: 00:00:00
A107: 2012-06-07 | E107: 00:00:00
A108: 2012-06-08 | E108: 00:00:00
A109: 2012-06-09 | B109: 00:00:00 | C109: 00:00:00 | D109: 00:00:00 | E109: 00:00:00
A110: 2012-06-10 | B110: 00:00:00 | C110: 00:00:00 | D110: 00:00:00 | E110: 00:00:00
A111: Timer på ugen: | E111: =SUM(E104:E110)*24 -> 0
A112: Timer til afspadsering: | G112: =IF(F103=7,E111-37,"") -> 
A113: Dato | B113: Møde-gå | D113: Pause | E113: Timer | H113: =IF(G123="","Ugen er IKKE skrevet ","Ugen er skrevet") -> Ugen er skrevet
A114: Uge 24 | F114: =COUNT(D115:D121) -> 7
A115: 2012-06-11 | B115: Ikke startet | D115: 00:00:00 | E115: 07:30:00
A116: 2012-06-12 | B116: 07:00:00 | C116: 15:15:00 | D116: 00:00:00 | E116: =SUM((C116-B116)-D116) -> 08:15:00
A117: 2012-06-13 | B117: 07:00:00 | C117: 16:15:00 | D117: 00:30:00 | E117: 08:45:00
A118: 2012-06-14 | B118: 06:45:00 | C118: 16:15:00 | D118: 00:30:00 | E118: 09:00:00
A119: 2012-06-15 | B119: 06:45:00 | C119: 15:45:00 | D119: 00:30:00 | E119: 08:30:00
A120: 2012-06-16 | B120: 00:00:00 | C120: 00:00:00 | D120: 00:00:00 | E120: 00:00:00
A121: 2012-06-17 | B121: 00:00:00 | C121: 00:00:00 | D121: 00:00:00 | E121: 00:00:00
A122: Timer på ugen: | E122: =SUM(E115:E121)*24 -> 42
A123: Timer til afspadsering: | G123: =IF(F114=7,E122-37,"") -> 5
A124: Dato | B124: Møde-gå | D124: Pause | E124: Timer | H124: Ugen er skrevet
A125: Uge 25 | F125: =COUNT(D126:D132) -> 7
A126: 2012-06-18 | B126: 07:00:00 | C126: 16:30:00 | D126: 00:00:00 | E126: =SUM((C126-B126)-D126) -> 09:30:00
A127: 2012-06-19 | B127: 07:00:00 | C127: 15:00:00 | D127: 00:30:00 | E127: 07:30:00
A128: 2012-06-20 | B128: 07:00:00 | C128: 15:00:00 | D128: 00:30:00 | E128: 07:30:00
A129: 2012-06-21 | B129: 06:00:00 | C129: 16:15:00 | D129: 00:00:00 | E129: 10:15:00
A130: 2012-06-22 | B130: 06:45:00 | C130: 15:15:00 | D130: 00:00:00 | E130: 08:30:00
A131: 2012-06-23 | B131: 00:00:00 | C131: 00:00:00 | D131: 00:00:00 | E131: 00:00:00
A132: 2012-06-24 | B132: 00:00:00 | C132: 00:00:00 | D132: 00:00:00 | E132: 00:00:00
A133: Timer på ugen: | E133: =SUM(E126:E132)*24 -> 43.25
A134: Timer til afspadsering: | G134: =IF(F125=7,E133-37,"") -> 6.25
A135: Dato | B135: Møde-gå | D135: Pause | E135: Timer | H135: Ugen er skrevet
A136: Uge 26 | F136: =COUNT(D137:D143) -> 7
A137: 2012-06-25 | B137: 07:00:00 | C137: 13:45:00 | D137: 00:00:00 | E137: =SUM((C137-B137)-D137) -> 06:45:00
A138: 2012-06-26 | B138: 07:00:00 | C138: 16:15:00 | D138: 00:30:00 | E138: 08:45:00
A139: 2012-06-27 | B139: 06:00:00 | C139: 17:00:00 | D139: 00:00:00 | E139: 11:00:00
A140: 2012-06-28 | B140: 06:00:00 | C140: 16:00:00 | D140: 00:30:00 | E140: 09:30:00
A141: 2012-06-29 | B141: 07:00:00 | C141: 14:00:00 | D141: 00:30:00 | E141: 06:30:00
A142: 2012-06-30 | B142: 00:00:00 | C142: 00:00:00 | D142: 00:00:00 | E142: 00:00:00
A143: 2012-07-01 | B143: 00:00:00 | C143: 00:00:00 | D143: 00:00:00 | E143: 00:00:00
A144: Timer på ugen: | E144: =SUM(E137:E143)*24 -> 42.5
A145: Timer til afspadsering: | G145: =IF(F136=7,E144-37,"") -> 5.5

Sheet Juli-August-September
A1: Timer til afspadsering: | E1: =SUM(G:G)+E2 -> 20.75
A2: Overført fra forrige måned | E2: =('April-Maj-Juni'!E1) -> 16.75
A3: Dato | B3: Møde-gå | D3: Pause | E3: Timer | H3: =IF(G13="","Ugen er IKKE skrevet ","Ugen er skrevet") -> Ugen er skrevet
A4: Uge 27 | F4: =COUNT(D5:D11) -> 7
A5: 2012-07-02 | B5: 06:00:00 | C5: 14:45:00 | D5: 00:00:00 | E5: =SUM((C5-B5)-D5) -> 08:45:00
A6: 2012-07-03 | B6: 07:00:00 | C6: 16:15:00 | D6: 00:00:00 | E6: 09:15:00
A7: 2012-07-04 | B7: 06:00:00 | C7: 16:15:00 | D7: 00:00:00 | E7: 10:15:00
A8: 2012-07-05 | B8: 07:00:00 | C8: 16:30:00 | D8: 00:00:00 | E8: 09:30:00
A9: 2012-07-06 | B9: 09:30:00 | C9: 15:15:00 | D9: 00:00:00 | E9: 05:45:00
A10: 2012-07-07 | B10: 00:00:00 | C10: 00:00:00 | D10: 00:00:00 | E10: 00:00:00
A11: 2012-07-08 | B11: 00:00:00 | C11: 00:00:00 | D11: 00:00:00 | E11: 00:00:00
A12: Timer på ugen: | E12: =SUM(E5:E11)*24 -> 43.5
A13: Timer til afspadsering: | G13: =IF(F4=7,E12-37,"") -> 6.5
A14: Dato | B14: Møde-gå | D14: Pause | E14: Timer | H14: =IF(G24="","Ugen er IKKE skrevet ","Ugen er skrevet") -> Ugen er skrevet
A15: Uge 28 | F15: =COUNT(D16:D22) -> 7
A16: 2012-07-09 | B16: 06:00:00 | C16: 17:00:00 | D16: 00:00:00 | E16: =SUM((C16-B16)-D16) -> 11:00:00
A17: 2012-07-10 | B17: 06:00:00 | C17: 16:15:00 | D17: 00:00:00 | E17: 10:15:00
A18: 2012-07-11 | B18: 07:00:00 | C18: 16:15:00 | D18: 00:30:00 | E18: 08:45:00
A19: 2012-07-12 | B19: 06:00:00 | C19: 16:45:00 | D19: 00:00:00 | E19: 10:45:00
A20: 2012-07-13 | B20: 06:00:00 | C20: 15:45:00 | D20: 00:00:00 | E20: 09:45:00
A21: 2012-07-14 | B21: 00:00:00 | C21: 00:00:00 | D21: 00:00:00 | E21: 00:00:00
A22: 2012-07-15 | B22: 00:00:00 | C22: 00:00:00 | D22: 00:00:00 | E22: 00:00:00
A23: Timer på ugen: | E23: =SUM(E16:E22)*24 -> 50.5
A24: Timer til afspadsering: | G24: =IF(F15=7,E23-37,"") -> 13.5
A25: Dato | B25: Møde-gå | D25: Pause | E25: Timer | H25: Ugen er skrevet
A26: Uge 29 | F26: =COUNT(D27:D33) -> 7
A27: 2012-07-16 | B27: Afspadsering | D27: 00:00:00 | E27: 00:00:00
A28: 2012-07-17 | B28: Afspadsering | D28: 00:00:00 | E28: 00:00:00
A29: 2012-07-18 | B29: Afspadsering | D29: 00:00:00 | E29: 00:00:00
A30: 2012-07-19 | B30: Afspadsering | D30: 00:00:00 | E30: 00:00:00
A31: 2012-07-20 | B31: Afspadsering | D31: 00:00:00 | E31: 00:00:00
A32: 2012-07-21 | B32: 00:00:00 | C32: 00:00:00 | D32: 00:00:00 | E32: =SUM((C32-B32)-D32) -> 00:00:00
A33: 2012-07-22 | B33: 00:00:00 | C33: 00:00:00 | D33: 00:00:00 | E33: 00:00:00
A34: Timer på ugen: | E34: =SUM(E27:E33)*24 -> 0
A35: Timer til afspadsering: | G35: =IF(F26=7,E34-37,"") -> -37
A36: Dato | B36: Møde-gå | D36: Pause | E36: Timer | H36: Ugen er IKKE skrevet
A37: Uge 30 | F37: =COUNT(D38:D44) -> 2
A38: 2012-07-23 | B38: Ferie
A39: 2012-07-24 | B39: Ferie
A40: 2012-07-25 | B40: Ferie
A41: 2012-07-26 | B41: Ferie
A42: 2012-07-27 | B42: Ferie
A43: 2012-07-28 | B43: 00:00:00 | C43: 00:00:00 | D43: 00:00:00 | E43: =SUM((C43-B43)-D43) -> 00:00:00
A44: 2012-07-29 | B44: 00:00:00 | C44: 00:00:00 | D44: 00:00:00 | E44: 00:00:00
A45: Timer på ugen: | E45: =SUM(E38:E44)*24 -> 0
A46: Timer til afspadsering: | G46: =IF(F37=7,E45-37,"") -> 
A47: Dato | B47: Møde-gå | D47: Pause | E47: Timer | H47: Ugen er IKKE skrevet
A48: Uge 31 | F48: =COUNT(D49:D55) -> 2
A49: 2012-07-30 | B49: Ferie
A50: 2012-07-31 | B50: Ferie
A51: 2012-08-01 | B51: Ferie
A52: 2012-08-02 | B52: Ferie
A53: 2012-08-03 | B53: Ferie
A54: 2012-08-04 | B54: 00:00:00 | C54: 00:00:00 | D54: 00:00:00 | E54: =SUM((C54-B54)-D54) -> 00:00:00
A55: 2012-08-05 | B55: 00:00:00 | C55: 00:00:00 | D55: 00:00:00 | E55: 00:00:00
A56: Timer på ugen: | E56: =SUM(E49:E55)*24 -> 0
A57: Timer til afspadsering: | G57: =IF(F48=7,E56-37,"") -> 
A58: Dato | B58: Møde-gå | D58: Pause | E58: Timer | H58: =IF(G69="","Ugen er IKKE skrevet ","Ugen er skrevet") -> Ugen er skrevet
A59: Uge 32 | F59: =COUNT(D60:D67) -> 8
A60: 2012-08-06 | B60: 06:15:00 | C60: 16:45:00 | D60: 00:30:00 | E60: =SUM((C60-B60)-D60) -> 10:00:00
A61: 2012-08-07 | B61: 05:15:00 | C61: 17:45:00 | D61: 00:30:00 | E61: 12:00:00
A62: 2012-08-08 | B62: 06:15:00 | C62: 16:15:00 | D62: 00:00:00 | E62: 10:00:00
A63: 2012-08-09 | B63: 06:30:00 | C63: 17:45:00 | D63: 00:00:00 | E63: 11:15:00
A64: 2012-08-09 | B64: 19:00:00 | C64: 20:30:00 | D64: 00:00:00 | E64: 01:30:00
A65: 2012-08-10 | B65: 06:00:00 | C65: 19:00:00 | D65: 00:00:00 | E65: 13:00:00
A66: 2012-08-11 | B66: 00:00:00 | C66: 00:00:00 | D66: 00:00:00 | E66: 00:00:00
A67: 2012-08-12 | B67: 00:00:00 | C67: 00:00:00 | D67: 00:00:00 | E67: 00:00:00
A68: Timer på ugen: | E68: =SUM(E60:E67)*24 -> 57.75
A69: Timer til afspadsering: | G69: =SUM(E68-37) -> 20.75
A70: Dato | B70: Møde-gå | D70: Pause | E70: Timer | H70: Ugen er skrevet
A71: Uge 33 | F71: =COUNT(D72:D78) -> 7
A72: 2012-08-13 | B72: 06:00:00 | C72: 16:15:00 | D72: 00:00:00 | E72: =SUM((C72-B72)-D72) -> 10:15:00
A73: 2012-08-14 | B73: FRI | D73: 00:00:00 | E73: 00:00:00
A74: 2012-08-15 | B74: 07:00:00 | C74: 16:15:00 | D74: 00:00:00 | E74: 09:15:00
A75: 2012-08-16 | B75: 06:00:00 | C75: 15:45:00 | D75: 00:00:00 | E75: 09:45:00
A76: 2012-08-17 | B76: 06:00:00 | C76: 13:45:00 | D76: 00:00:00 | E76: 07:45:00
A77: 2012-08-18 | B77: 00:00:00 | C77: 00:00:00 | D77: 00:00:00 | E77: 00:00:00
A78: 2012-08-19 | B78: 00:00:00 | C78: 00:00:00 | D78: 00:00:00 | E78: 00:00:00
A79: Timer på ugen: | E79: =SUM(E72:E78)*24 -> 37
A80: Timer til afspadsering: | G80: =IF(F71=7,E79-37,"") -> 0
A81: Dato | B81: Møde-gå | D81: Pause | E81: Timer | H81: =IF(G91="","Ugen er IKKE skrevet ","Ugen er skrevet") -> Ugen er skrevet
A82: Uge 34 | F82: =COUNT(D83:D89) -> 7
A83: 2012-08-20 | B83: FRI | D83: 00:00:00 | E83: 00:00:00
A84: 2012-08-21 | B84: 07:00:00 | C84: 16:15:00 | D84: 00:00:00 | E84: =SUM((C84-B84)-D84) -> 09:15:00
A85: 2012-08-22 | B85: 08:00:00 | C85: 16:00:00 | D85: 00:30:00 | E85: 07:30:00
A86: 2012-08-23 | B86: 08:00:00 | C86: 16:00:00 | D86: 00:00:00 | E86: 08:00:00
A87: 2012-08-24 | B87: 06:00:00 | C87: 14:30:00 | D87: 00:30:00 | E87: 08:00:00
A88: 2012-08-25 | B88: 00:00:00 | C88: 00:00:00 | D88: 00:00:00 | E88: 00:00:00
A89: 2012-08-26 | B89: 00:00:00 | C89: 00:00:00 | D89: 00:00:00 | E89: 00:00:00
A90: Timer på ugen: | E90: =SUM(E83:E89)*24 -> 32.75
A91: Timer til afspadsering: | G91: =IF(F82=7,E90-37,"") -> -4.25
A92: Dato | B92: Møde-gå | D92: Pause | E92: Timer | H92: Ugen er skrevet
A93: Uge 35 | F93: =COUNT(D94:D100) -> 7
A94: 2012-08-27 | B94: 08:00:00 | C94: 16:00:00 | D94: 00:00:00 | E94: =SUM((C94-B94)-D94) -> 08:00:00
A95: 2012-08-28 | B95: 06:00:00 | C95: 15:00:00 | D95: 00:00:00 | E95: 09:00:00
A96: 2012-08-29 | B96: 06:00:00 | C96: 16:00:00 | D96: 00:30:00 | E96: 09:30:00
A97: 2012-08-30 | B97: 06:00:00 | C97: 15:00:00 | D97: 00:30:00 | E97: 08:30:00
A98: 2012-08-31 | B98: 06:00:00 | C98: 14:15:00 | D98: 00:00:00 | E98: 08:15:00
A99: 2012-09-01 | B99: 00:00:00 | C99: 00:00:00 | D99: 00:00:00 | E99: 00:00:00
A100: 2012-09-02 | B100: 00:00:00 | C100: 00:00:00 | D100: 00:00:00 | E100: 00:00:00
A101: Timer på ugen: | E101: =SUM(E94:E100)*24 -> 43.25
A102: Timer til afspadsering: | G102: =IF(F93=7,E101-37,"") -> 6.25
A103: Dato | B103: Møde-gå | D103: Pause | E103: Timer | H103: Ugen er skrevet
A104: Uge 36 | F104: =COUNT(D105:D111) -> 7
A105: 2012-09-03 | B105: 06:00:00 | C105: 16:00:00 | D105: 00:30:00 | E105: =SUM((C105-B105)-D105) -> 09:30:00
A106: 2012-09-04 | B106: 06:00:00 | C106: 14:00:00 | D106: 00:00:00 | E106: 08:00:00
A107: 2012-09-05 | B107: 06:00:00 | C107: 16:00:00 | D107: 00:00:00 | E107: 10:00:00
A108: 2012-09-06 | B108: FRI | D108: 00:00:00 | E108: 00:00:00
A109: 2012-09-07 | B109: 06:00:00 | C109: 15:30:00 | D109: 00:30:00 | E109: 09:00:00
A110: 2012-09-08 | B110: 00:00:00 | C110: 00:00:00 | D110: 00:00:00 | E110: 00:00:00
A111: 2012-09-09 | B111: 00:00:00 | C111: 00:00:00 | D111: 00:00:00 | E111: 00:00:00
A112: Timer på ugen: | E112: =SUM(E105:E111)*24 -> 36.5
A113: Timer til afspadsering: | G113: =IF(F104=7,E112-37,"") -> -0.5
A114: Dato | B114: Møde-gå | D114: Pause | E114: Timer | H114: Ugen er skrevet
A115: Uge 37 | F115: =COUNT(D116:D122) -> 7
A116: 2012-09-10 | B116: FRI | D116: 00:00:00 | E116: 00:00:00
A117: 2012-09-11 | B117: 06:00:00 | C117: 14:00:00 | D117: 00:00:00 | E117: =SUM(C117-B117-D117) -> 08:00:00
A118: 2012-09-12 | B118: 06:00:00 | C118: 16:00:00 | D118: 00:30:00 | E118: =SUM(C118-B118-D118) -> 09:30:00
A119: 2012-09-13 | B119: 06:00:00 | C119: 16:00:00 | D119: 00:30:00 | E119: 09:30:00
A120: 2012-09-14 | B120: 06:00:00 | C120: 15:00:00 | D120: 00:30:00 | E120: 08:30:00
A121: 2012-09-15 | B121: 00:00:00 | C121: 00:00:00 | D121: 00:00:00 | E121: 00:00:00
A122: 2012-09-16 | B122: 00:00:00 | C122: 00:00:00 | D122: 00:00:00 | E122: 00:00:00
A123: Timer på ugen: | E123: =SUM(E116:E122)*24 -> 35.5
A124: Timer til afspadsering: | G124: =IF(F115=7,E123-37,"") -> -1.5
A125: Dato | B125: Møde-gå | D125: Pause | E125: Timer | H125: Ugen er skrevet
A126: Uge 38 | F126: =COUNT(D127:D133) -> 7
A127: 2012-09-17 | B127: FRI | D127: 00:00:00 | E127: 00:00:00
A128: 2012-09-18 | B128: Syg | D128: 00:00:00 | E128: 07:30:00
A129: 2012-09-19 | B129: 06:00:00 | C129: 16:00:00 | D129: 00:00:00 | E129: =SUM((C129-B129)-D129) -> 10:00:00
A130: 2012-09-20 | B130: 06:00:00 | C130: 16:00:00 | D130: 00:00:00 | E130: 10:00:00
A131: 2012-09-21 | B131: FRI | C131: 00:00:00 | D131: 00:00:00 | E131: 00:00:00
A132: 2012-09-22 | B132: 00:00:00 | C132: 00:00:00 | D132: 00:00:00 | E132: =SUM((C132-B132)-D132) -> 00:00:00
A133: 2012-09-23 | B133: 00:00:00 | C133: 00:00:00 | D133: 00:00:00 | E133: 00:00:00
A134: Timer på ugen: | E134: =SUM(E127:E133)*24 -> 27.5
A135: Timer til afspadsering: | G135: =IF(F126=7,E134-37,"") -> -9.5
A136: Dato | B136: Møde-gå | D136: Pause | E136: Timer | H136: =IF(G146="","Ugen er IKKE skrevet ","Ugen er skrevet") -> Ugen er skrevet
A137: Uge 39 | F137: =COUNT(D138:D144) -> 7
A138: 2012-09-24 | B138: 06:00:00 | C138: 16:00:00 | D138: 00:30:00 | E138: =SUM((C138-B138)-D138) -> 09:30:00
A139: 2012-09-25 | B139: 06:00:00 | C139: 14:15:00 | D139: 00:00:00 | E139: 08:15:00
A140: 2012-09-26 | B140: 06:15:00 | C140: 16:15:00 | D140: 00:30:00 | E140: 09:30:00
A141: 2012-09-27 | B141: 06:15:00 | C141: 16:00:00 | D141: 00:30:00 | E141: 09:15:00
A142: 2012-09-28 | B142: 06:00:00 | C142: 16:15:00 | D142: 00:00:00 | E142: 10:15:00
A143: 2012-09-29 | B143: 00:00:00 | C143: 00:00:00 | D143: 00:00:00 | E143: 00:00:00
A144: 2012-09-30 | B144: 00:00:00 | C144: 00:00:00 | D144: 00:00:00 | E144: 00:00:00
A145: Timer på ugen: | E145: =SUM(E138:E144)*24 -> 46.75
A146: Timer til afspadsering: | G146: =IF(F137=7,E145-37,"") -> 9.75

Sheet Oktober-November-December
A1: Timer til afspadsering: | E1: =SUM(G:G)+E2 -> 48.5
A2: Overført fra forrige måned | E2: =('Juli-August-September'!E1) -> 20.75
A3: Dato | B3: Møde-gå | D3: Pause | E3: Timer | H3: =IF(G13="","Ugen er IKKE skrevet ","Ugen er skrevet") -> Ugen er skrevet
A4: Uge 40 | F4: =COUNT(D5:D11) -> 7
A5: 2012-10-01 | B5: 06:00:00 | C5: 15:00:00 | D5: 00:30:00 | E5: =SUM((C5-B5)-D5) -> 08:30:00
A6: 2012-10-02 | B6: FRI | D6: 00:00:00 | E6: 00:00:00
A7: 2012-10-03 | B7: 09:15:00 | C7: 16:00:00 | D7: 00:00:00 | E7: 06:45:00
A8: 2012-10-04 | B8: 06:00:00 | C8: 16:00:00 | D8: 00:30:00 | E8: 09:30:00
A9: 2012-10-05 | B9: 06:00:00 | C9: 15:00:00 | D9: 00:00:00 | E9: 09:00:00
A10: 2012-10-06 | B10: 00:00:00 | C10: 00:00:00 | D10: 00:00:00 | E10: 00:00:00
A11: 2012-10-07 | B11: 00:00:00 | C11: 00:00:00 | D11: 00:00:00 | E11: 00:00:00
A12: Timer på ugen: | E12: =SUM(E5:E11)*24 -> 33.75
A13: Timer til afspadsering: | G13: =IF(F4=7,E12-37,"") -> -3.25
A14: Dato | B14: Møde-gå | D14: Pause | E14: Timer | H14: =IF(G24="","Ugen er IKKE skrevet ","Ugen er skrevet") -> Ugen er skrevet
A15: Uge 41 | F15: =COUNT(D16:D22) -> 7
A16: 2012-10-08 | B16: 06:00:00 | C16: 16:00:00 | D16: 00:00:00 | E16: =SUM((C16-B16)-D16) -> 10:00:00
A17: 2012-10-09 | B17: 06:00:00 | C17: 14:15:00 | D17: 00:30:00 | E17: 07:45:00
A18: 2012-10-10 | B18: 09:00:00 | C18: 16:00:00 | D18: 00:30:00 | E18: 06:30:00
A19: 2012-10-11 | B19: 06:00:00 | C19: 15:45:00 | D19: 00:30:00 | E19: 09:15:00
A20: 2012-10-12 | B20: 06:00:00 | C20: 15:00:00 | D20: 00:30:00 | E20: 08:30:00
A21: 2012-10-13 | B21: 00:00:00 | C21: 00:00:00 | D21: 00:00:00 | E21: 00:00:00
A22: 2012-10-14 | B22: 00:00:00 | C22: 00:00:00 | D22: 00:00:00 | E22: 00:00:00
A23: Timer på ugen: | E23: =SUM(E16:E22)*24 -> 42
A24: Timer til afspadsering: | G24: =IF(F15=7,E23-37,"") -> 5
A25: Dato | B25: Møde-gå | D25: Pause | E25: Timer | H25: Ugen er skrevet
A26: Uge 42 | F26: =COUNT(D27:D33) -> 7
A27: 2012-10-15 | B27: 06:00:00 | C27: 16:15:00 | D27: 00:30:00 | E27: =SUM((C27-B27)-D27) -> 09:45:00
A28: 2012-10-16 | B28: 06:00:00 | C28: 17:15:00 | D28: 00:00:00 | E28: 11:15:00
A29: 2012-10-17 | B29: 06:00:00 | C29: 16:30:00 | D29: 00:00:00 | E29: 10:30:00
A30: 2012-10-18 | B30: 06:00:00 | C30: 16:15:00 | D30: 00:00:00 | E30: 10:15:00
A31: 2012-10-19 | B31: 06:00:00 | C31: 15:15:00 | D31: 00:30:00 | E31: 08:45:00
A32: 2012-10-20 | B32: 00:00:00 | C32: 00:00:00 | D32: 00:00:00 | E32: 00:00:00
A33: 2012-10-21 | B33: 00:00:00 | C33: 00:00:00 | D33: 00:00:00 | E33: 00:00:00
A34: Timer på ugen: | E34: =SUM(E27:E33)*24 -> 50.5
A35: Timer til afspadsering: | G35: =IF(F26=7,E34-37,"") -> 13.5
A36: Dato | B36: Møde-gå | D36: Pause | E36: Timer | H36: Ugen er skrevet
A37: Uge 43 | F37: =COUNT(D38:D44) -> 7
A38: 2012-10-22 | B38: 06:00:00 | C38: 16:00:00 | D38: 00:00:00 | E38: =SUM((C38-B38)-D38) -> 10:00:00
A39: 2012-10-23 | B39: 06:00:00 | C39: 16:00:00 | D39: 00:30:00 | E39: 09:30:00
A40: 2012-10-24 | B40: FRI | D40: 00:00:00 | E40: 00:00:00
A41: 2012-10-25 | B41: 07:30:00 | C41: 16:00:00 | D41: 00:30:00 | E41: 08:00:00
A42: 2012-10-26 | B42: 06:15:00 | C42: 12:30:00 | D42: 00:00:00 | E42: 06:15:00
A43: 2012-10-27 | B43: 00:00:00 | C43: 00:00:00 | D43: 00:00:00 | E43: 00:00:00
A44: 2012-10-28 | B44: 00:00:00 | C44: 00:00:00 | D44: 00:00:00 | E44: 00:00:00
A45: Timer på ugen: | E45: =SUM(E38:E44)*24 -> 33.75
A46: Timer til afspadsering: | G46: =IF(F37=7,E45-37,"") -> -3.25
A47: Dato | B47: Møde-gå | D47: Pause | E47: Timer | H47: Ugen er skrevet
A48: Uge 44 | F48: =COUNT(D49:D55) -> 7
A49: 2012-10-29 | B49: 07:15:00 | C49: 15:00:00 | D49: 00:00:00 | E49: =SUM((C49-B49)-D49) -> 07:45:00
A50: 2012-10-30 | B50: 06:00:00 | C50: 14:30:00 | D50: 00:30:00 | E50: 08:00:00
A51: 2012-10-31 | B51: 07:00:00 | C51: 16:00:00 | D51: 00:00:00 | E51: 09:00:00
A52: 2012-11-01 | B52: 06:00:00 | C52: 16:00:00 | D52: 00:30:00 | E52: 09:30:00
A53: 2012-11-02 | B53: 06:00:00 | C53: 15:00:00 | D53: 00:30:00 | E53: 08:30:00
A54: 2012-11-03 | B54: 00:00:00 | C54: 00:00:00 | D54: 00:00:00 | E54: 00:00:00
A55: 2012-11-04 | B55: 00:00:00 | C55: 00:00:00 | D55: 00:00:00 | E55: 00:00:00
A56: Timer på ugen: | E56: =SUM(E49:E55)*24 -> 42.75
A57: Timer til afspadsering: | G57: =IF(F48=7,E56-37,"") -> 5.75
A58: Dato | B58: Møde-gå | D58: Pause | E58: Timer | H58: Ugen er skrevet
A59: Uge 45 | F59: =COUNT(D60:D66) -> 7
A60: 2012-11-05 | B60: 07:15:00 | C60: 15:00:00 | D60: 00:00:00 | E60: =SUM((C60-B60)-D60) -> 07:45:00
A61: 2012-11-06 | B61: 06:00:00 | C61: 14:30:00 | D61: 03:00:00 | E61: 05:30:00
A62: 2012-11-07 | B62: FRI | D62: 00:00:00 | E62: 00:00:00
A63: 2012-11-08 | B63: 06:00:00 | C63: 16:00:00 | D63: 00:30:00 | E63: 09:30:00
A64: 2012-11-09 | B64: 06:00:00 | C64: 15:15:00 | D64: 00:30:00 | E64: 08:45:00
A65: 2012-11-10 | B65: 00:00:00 | C65: 00:00:00 | D65: 00:00:00 | E65: 00:00:00
A66: 2012-11-11 | B66: 00:00:00 | C66: 00:00:00 | D66: 00:00:00 | E66: 00:00:00
A67: Timer på ugen: | E67: =SUM(E60:E66)*24 -> 31.5
A68: Timer til afspadsering: | G68: =IF(F59=7,E67-37,"") -> -5.5
A69: Dato | B69: Møde-gå | D69: Pause | E69: Timer | H69: Ugen er skrevet
A70: Uge 46 | F70: =COUNT(D71:D77) -> 7
A71: 2012-11-12 | B71: 06:00:00 | C71: 15:00:00 | D71: 00:30:00 | E71: =SUM((C71-B71)-D71) -> 08:30:00
A72: 2012-11-13 | B72: Syg | D72: 00:00:00 | E72: 07:30:00
A73: 2012-11-14 | B73: 06:00:00 | C73: 16:00:00 | D73: 00:30:00 | E73: 09:30:00
A74: 2012-11-15 | B74: 06:00:00 | C74: 14:30:00 | D74: 00:30:00 | E74: 08:00:00
A75: 2012-11-16 | B75: 06:00:00 | C75: 15:00:00 | D75: 00:30:00 | E75: 08:30:00
A76: 2012-11-17 | B76: 00:00:00 | C76: 00:00:00 | D76: 00:00:00 | E76: 00:00:00
A77: 2012-11-18 | B77: 00:00:00 | C77: 00:00:00 | D77: 00:00:00 | E77: 00:00:00
A78: Timer på ugen: | E78: =SUM(E71:E77)*24 -> 42
A79: Timer til afspadsering: | G79: =IF(F70=7,E78-37,"") -> 5
A80: Dato | B80: Møde-gå | D80: Pause | E80: Timer | H80: =IF(G90="","Ugen er IKKE skrevet ","Ugen er skrevet") -> Ugen er skrevet
A81: Uge 47 | F81: =COUNT(D82:D88) -> 7
A82: 2012-11-19 | B82: 07:30:00 | C82: 16:00:00 | D82: 00:30:00 | E82: =SUM((C82-B82)-D82) -> 08:00:00
A83: 2012-11-20 | B83: 08:15:00 | C83: 15:00:00 | D83: 00:30:00 | E83: 06:15:00
A84: 2012-11-21 | B84: 06:00:00 | C84: 16:15:00 | D84: 00:30:00 | E84: 09:45:00
A85: 2012-11-22 | B85: 06:00:00 | C85: 16:00:00 | D85: 00:30:00 | E85: 09:30:00
A86: 2012-11-23 | B86: 06:00:00 | C86: 15:00:00 | D86: 00:30:00 | E86: 08:30:00
A87: 2012-11-24 | B87: 00:00:00 | C87: 00:00:00 | D87: 00:00:00 | E87: 00:00:00
A88: 2012-11-25 | B88: 00:00:00 | C88: 00:00:00 | D88: 00:00:00 | E88: 00:00:00
A89: Timer på ugen: | E89: =SUM(E82:E88)*24 -> 42
A90: Timer til afspadsering: | G90: =IF(F81=7,E89-37,"") -> 5
A91: Dato | B91: Møde-gå | D91: Pause | E91: Timer | H91: =IF(G101="","Ugen er IKKE skrevet ","Ugen er skrevet") -> Ugen er skrevet
A92: Uge 48 | F92: =COUNT(D93:D99) -> 7
A93: 2012-11-26 | B93: 06:00:00 | C93: 16:00:00 | D93: 00:30:00 | E93: =SUM((C93-B93)-D93) -> 09:30:00
A94: 2012-11-27 | B94: Syg | D94: 00:00:00 | E94: 07:30:00
A95: 2012-11-28 | B95: Syg | D95: 00:00:00 | E95: 07:30:00
A96: 2012-11-29 | B96: 06:00:00 | C96: 16:00:00 | D96: 00:30:00 | E96: 09:30:00
A97: 2012-11-30 | B97: 06:00:00 | C97: 15:00:00 | D97: 00:30:00 | E97: 08:30:00
A98: 2012-12-01 | B98: 00:00:00 | C98: 00:00:00 | D98: 00:00:00 | E98: 00:00:00
A99: 2012-12-02 | B99: 00:00:00 | C99: 00:00:00 | D99: 00:00:00 | E99: 00:00:00
A100: Timer på ugen: | E100: =SUM(E93:E99)*24 -> 42.5
A101: Timer til afspadsering: | G101: =IF(F92=7,E100-37,"") -> 5.5
A102: Dato | B102: Møde-gå | D102: Pause | E102: Timer | H102: =IF(G112="","Ugen er IKKE skrevet ","Ugen er skrevet") -> Ugen er IKKE skrevet
A103: Uge 49 | F103: =COUNT(D104:D110) -> 6
A104: 2012-12-03 | B104: 06:00:00 | C104: 16:15:00 | D104: 00:30:00 | E104: =SUM((C104-B104)-D104) -> 09:45:00
A105: 2012-12-04 | B105: 07:30:00 | C105: 16:00:00 | D105: 00:30:00 | E105: 08:00:00
A106: 2012-12-05 | B106: 06:30:00 | C106: 17:15:00 | D106: 00:30:00 | E106: 10:15:00
A107: 2012-12-06 | B107: 06:15:00 | C107: 13:00:00 | D107: 00:30:00 | E107: 06:15:00
A108: 2012-12-07 | B108: 06:00:00 | C108: 13:30:00 | E108: 07:30:00
A109: 2012-12-08 | B109: 00:00:00 | C109: 00:00:00 | D109: 00:00:00 | E109: 00:00:00
A110: 2012-12-09 | B110: 00:00:00 | C110: 00:00:00 | D110: 00:00:00 | E110: 00:00:00
A111: Timer på ugen: | E111: =SUM(E104:E110)*24 -> 41.75
A112: Timer til afspadsering: | G112: =IF(F103=7,E111-37,"") -> 
A113: Dato | B113: Møde-gå | D113: Pause | E113: Timer | H113: Ugen er IKKE skrevet
A114: Uge 50 | F114: =COUNT(D115:D121) -> 2
A115: 2012-12-10 | E115: =SUM((C115-B115)-D115) -> 00:00:00
A116: 2012-12-11 | E116: 00:00:00
A117: 2012-12-12 | E117: 00:00:00
A118: 2012-12-13 | E118: 00:00:00
A119: 2012-12-14 | E119: 00:00:00
A120: 2012-12-15 | B120: 00:00:00 | C120: 00:00:00 | D120: 00:00:00 | E120: 00:00:00
A121: 2012-12-16 | B121: 00:00:00 | C121: 00:00:00 | D121: 00:00:00 | E121: 00:00:00
A122: Timer på ugen: | E122: =SUM(E115:E121)*24 -> 0
A123: Timer til afspadsering: | G123: =IF(F114=7,E122-37,"") -> 
A124: Dato | B124: Møde-gå | D124: Pause | E124: Timer | H124: =IF(G134="","Ugen er IKKE skrevet ","Ugen er skrevet") -> Ugen er IKKE skrevet
A125: Uge 51 | F125: =COUNT(D126:D132) -> 2
A126: 2012-12-17 | E126: =SUM((C126-B126)-D126) -> 00:00:00
A127: 2012-12-18 | E127: 00:00:00
A128: 2012-12-19 | E128: 00:00:00
A129: 2012-12-20 | E129: 00:00:00
A130: 2012-12-21 | E130: 00:00:00
A131: 2012-12-22 | B131: 00:00:00 | C131: 00:00:00 | D131: 00:00:00 | E131: 00:00:00
A132: 2012-12-23 | B132: 00:00:00 | C132: 00:00:00 | D132: 00:00:00 | E132: 00:00:00
A133: Timer på ugen: | E133: =SUM(E126:E132)*24 -> 0
A134: Timer til afspadsering: | G134: =IF(F125=7,E133-37,"") -> 
A135: Dato | B135: Møde-gå | D135: Pause | E135: Timer | H135: =IF(G145="","Ugen er IKKE skrevet ","Ugen er skrevet") -> Ugen er IKKE skrevet
A136: Uge 52 | F136: =COUNT(D137:D143) -> 2
A137: 2012-12-24 | E137: =SUM((C137-B137)-D137) -> 00:00:00
A138: 2012-12-25 | E138: 00:00:00
A139: 2012-12-26 | E139: 00:00:00
A140: 2012-12-27 | E140: 00:00:00
A141: 2012-12-28 | E141: 00:00:00
A142: 2012-12-29 | B142: 00:00:00 | C142: 00:00:00 | D142: 00:00:00 | E142: 00:00:00
A143: 2012-12-30 | B143: 00:00:00 | C143: 00:00:00 | D143: 00:00:00 | E143: 00:00:00
A144: Timer på ugen: | E144: =SUM(E137:E143)*24 -> 0
A145: Timer til afspadsering: | G145: =IF(F136=7,E144-37,"") -> 
